bitfinex-derivatives/quotes_SOLF0:USTF0_20241024
["timestamp","ask_amount","ask_price","bid_price","bid_amount"]
[1729806153425,2.8089,178.09,178.07,7.77399684]
[1729806153821,12.60339684,178.13,178.07,7.77399684]
[1729806155234,2.8089,178.08,178.07,7.77399684]
[1729806158336,2.8089,178.08,178.06,12.57399684]
[1729806162941,2.8091,178.07,178.06,4.8]
[1729806165843,2.8091,178.07,178.04,10.58349684]
[1729806166048,2.8091,178.07,178.04,15.38349684]
[1729806168441,7.77399684,178.1,178.04,12.57399684]
[1729806168948,7.77399684,178.1,178.04,7.77399684]
[1729806169339,7.77399684,178.07,177.92,2.74933689]
[1729806169541,2.8095,178.05,178.02,2.8099]
[1729806170444,2.8096,178.04,178.01,10.58399684]
[1729806171644,2.81,178.02,177.99,2.8103]
[1729806171852,7.77399684,178.05,177.92,2.74975947]
[1729806172146,2.81,178.02,177.99,7.77399684]
[1729806172545,7.77399684,178.05,177.99,7.77399684]
[1729806172743,2.8101,178.01,177.99,7.77399684]
[1729806172950,7.77399684,178.05,177.99,7.77399684]
[1729806173649,2.81,178.02,177.99,7.77399684]
[1729806174151,2.8101,178.01,177.99,7.77399684]
[1729806174353,2.8101,178.01,177.98,10.58449684]
[1729806174842,7.4751,178.06,177.98,7.77399684]
[1729806174843,2.8103,178.0,177.98,7.77399684]
[1729806175043,7.77399684,178.03,177.98,7.77399684]
[1729806175444,2.8103,178.0,177.98,7.77399684]
[1729806175642,7.77399684,178.03,177.97,4.8]
[1729806175846,7.77399684,178.03,177.9,2.75983523]
[1729806176045,7.77399684,178.03,177.96,7.77399684]
[1729806176247,2.8105,177.99,177.96,7.77399684]
[1729806177256,2.8105,177.99,177.95,2.811]
[1729806177450,2.8105,177.99,177.97,7.77399684]
[1729806177651,2.8105,177.99,177.95,2.811]
[1729806177851,2.8105,177.99,177.97,7.77399684]
[1729806178651,7.4751,178.06,177.98,7.77399684]
[1729806178854,15.24909684,178.06,177.98,7.77399684]
[1729806179251,15.24909684,178.06,177.94,4.8]
[1729806179458,7.77399684,178.04,177.98,7.77399684]
[1729806179963,2.8103,178.0,177.98,7.77399684]
[1729806188466,2.8103,178.0,177.97,2.8107]
[1729806188667,2.8103,178.0,177.98,7.77399684]
[1729806191167,12.2751,178.06,177.98,7.77399684]
[1729806191370,2.81,178.02,177.99,2.8104]
[1729806191759,2.81,178.02,177.99,10.58439684]
[1729806192160,2.8097,178.04,178.0,2.8102]
[1729806192364,7.4751,178.06,178.0,7.77399684]
[1729806192767,2.8097,178.04,178.0,10.58409684]
[1729806193263,7.4751,178.06,178.0,10.58409684]
[1729806193472,7.4751,178.06,178.0,2.8101]
[1729806193662,7.4751,178.06,178.0,10.58409684]
[1729806194063,2.8097,178.04,178.0,10.58409684]
[1729806194562,7.77399684,178.09,178.02,7.77399684]
[1729806194765,2.8096,178.04,178.02,7.77399684]
[1729806196868,2.8097,178.04,178.0,2.8102]
[1729806197172,7.0411,178.08,178.0,10.58419684]
[1729806197563,2.8097,178.04,178.0,10.58419684]
[1729806199174,7.0411,178.08,178.0,7.77399684]
[1729806199364,2.8094,178.06,178.03,2.8096]
[1729806199872,7.0411,178.08,178.03,2.8096]
[1729806200076,2.8092,178.07,178.03,2.8096]
[1729806200373,7.0411,178.08,178.03,2.8096]
[1729806201270,2.8093,178.06,178.03,2.8096]
[1729806201568,7.77399684,178.09,178.02,7.77399684]
[1729806201773,2.8089,178.08,178.03,7.77399684]
[1729806202570,2.8089,178.08,178.04,2.8095]
[1729806204879,2.8091,178.08,178.05,2.8094]
[1729806205082,7.77399684,178.11,178.05,10.58339684]
[1729806205566,2.8089,178.09,178.05,10.58339684]
[1729806205765,11.9788,178.14,178.05,7.77399684]
[1729806205766,7.1788,178.14,178.05,7.77399684]
[1729806205971,7.77399684,178.13,178.05,7.77399684]
[1729806206574,2.8088,178.09,178.06,2.8092]
[1729806207278,2.8087,178.1,178.07,7.77399684]
[1729806208776,2.8087,178.1,178.07,10.58309684]
[1729806208985,2.8087,178.1,178.07,7.77399684]
[1729806209275,7.77399684,178.14,178.07,10.58299684]
[1729806209276,2.8085,178.11,178.07,10.58299684]
[1729806209882,2.8085,178.11,178.08,7.77399684]
[1729806210378,2.8085,178.11,178.08,10.58289684]
[1729806211578,2.8079,178.15,178.11,2.8084]
[1729806211772,7.2492,178.2,178.1,7.77399684]
[1729806211969,7.77399684,178.17,178.1,7.77399684]
[1729806212175,2.8083,178.12,178.1,7.77399684]
[1729806212379,7.2492,178.2,178.1,7.77399684]
[1729806212681,7.77399684,178.16,178.1,7.77399684]
[1729806212881,2.8083,178.13,178.1,7.77399684]
[1729806214681,7.2693,178.22,178.1,7.77399684]
[1729806214981,2.8083,178.12,178.1,7.77399684]
[1729806215574,7.2693,178.22,178.1,7.77399684]
[1729806215776,7.2693,178.22,178.1,10.58249684]
[1729806215975,7.77399684,178.17,178.1,10.58249684]
[1729806216171,2.8082,178.13,178.1,7.77399684]
[1729806216775,2.808,178.14,178.11,2.8084]
[1729806216982,7.77399684,178.17,178.1,7.77399684]
[1729806217778,2.8083,178.13,178.1,7.77399684]
[1729806218169,7.77399684,178.17,178.1,7.77399684]
[1729806218374,2.8083,178.12,178.1,7.77399684]
[1729806220085,4.8868,178.19,178.11,7.77399684]
[1729806220288,7.77399684,178.15,177.98,2.5408]
[1729806220483,7.77399684,178.12,178.06,7.77399684]
[1729806220888,2.5278,178.11,178.06,7.77399684]
[1729806221491,2.8091,178.07,178.06,7.77399684]
[1729806221989,2.8093,178.06,178.03,7.77399684]
[1729806226894,2.8093,178.06,178.03,10.58369684]
[1729806227485,2.8093,178.06,178.05,7.77399684]
[1729806227685,2.8095,178.05,177.99,4.8]
[1729806227894,2.8095,178.05,178.04,7.77399684]
[1729806228386,2.5278,178.11,178.04,12.57399684]
[1729806228592,2.8092,178.07,178.04,4.8]
[1729806228779,2.8092,178.07,178.06,7.77399684]
[1729806231292,2.8091,178.08,178.06,7.77399684]
[1729806231493,2.8091,178.08,178.07,7.77399684]
[1729806233487,2.8091,178.08,178.04,7.6095]
[1729806233695,2.5278,178.11,178.04,7.6095]
[1729806234294,2.5278,178.11,178.07,7.77399684]
[1729806235402,2.8089,178.08,178.07,7.77399684]
[1729806237104,2.8089,178.09,178.07,7.77399684]
[1729806237403,2.5278,178.11,178.07,7.77399684]
[1729806238103,2.8087,178.1,178.07,7.77399684]
[1729806238291,2.5278,178.11,178.04,4.8]
[1729806238496,2.5278,178.11,178.05,7.77399684]
[1729806239298,2.8094,178.06,178.05,7.77399684]
[1729806241195,2.8094,178.06,178.02,2.8098]
[1729806241501,2.8094,178.06,178.05,7.77399684]
[1729806244204,2.8094,178.06,178.03,2.8096]
[1729806244500,2.8094,178.06,178.05,7.77399684]
[1729806245704,10.30179684,178.11,178.05,7.77399684]
[1729806246000,2.8091,178.08,178.05,7.77399684]
[1729806246203,2.8091,178.08,178.04,2.8095]
[1729806246403,2.8091,178.08,178.06,7.77399684]
[1729806246603,2.5278,178.11,178.01,4.78]
[1729806246796,2.8092,178.07,178.06,7.77399684]
[1729806249505,2.8092,178.07,178.04,2.8095]
[1729806249706,2.8092,178.07,178.06,7.77399684]
[1729806250003,10.30179684,178.11,178.04,7.77399684]
[1729806250413,2.8088,178.09,178.04,10.58349684]
[1729806250595,10.30179684,178.11,178.04,10.58349684]
[1729806250910,10.30179684,178.11,177.84,565.0]
[1729806251216,2.8099,178.03,178.01,7.77399684]
[1729806255901,2.8096,178.04,178.01,10.58399684]
[1729806257911,2.5278,178.11,178.01,7.77399684]
[1729806258204,7.77399684,178.09,178.01,7.77399684]
[1729806258613,2.8097,178.04,178.01,10.58399684]
[1729806259411,7.77399684,178.09,178.01,7.77399684]
[1729806259609,2.8097,178.03,178.01,7.77399684]
[1729806260311,2.3596,178.08,178.01,7.77399684]
[1729806260498,2.8098,178.03,178.01,7.77399684]
[1729806262306,2.8099,178.02,178.01,7.77399684]
[1729806263704,2.8099,178.02,177.99,2.8104]
[1729806263911,2.8099,178.02,178.01,7.77399684]
[1729806266812,2.8102,178.0,177.97,2.8106]
[1729806267110,2.8102,178.0,177.99,7.77399684]
[1729806273113,2.8102,178.0,177.97,2.8106]
[1729806273319,2.8102,178.0,177.99,7.77399684]
[1729806280112,7.77399684,178.05,177.9,4.9769]
[1729806280318,2.8106,177.98,177.97,7.77399684]
[1729806286125,2.8105,177.99,177.97,7.77399684]
[1729806289529,7.77399684,178.03,177.96,2.8108]
[1729806289729,2.8105,177.98,177.95,2.811]
[1729806289924,2.8105,177.98,177.96,7.77399684]
[1729806292128,2.8105,177.98,177.96,10.58479684]
[1729806292928,2.8105,177.98,177.96,7.77399684]
[1729806294232,2.8107,177.97,177.94,2.8111]
[1729806294435,2.8107,177.97,177.96,7.77399684]
[1729806297233,2.8107,177.97,177.94,2.811]
[1729806297436,2.8107,177.97,177.95,7.77399684]
[1729806298730,5.6161,178.14,177.95,7.77399684]
[1729806298932,15.25059684,178.13,178.05,7.77399684]
[1729806299135,20.01059684,178.13,178.05,7.77399684]
[1729806300338,2.8091,178.07,178.05,7.77399684]
[1729806302628,2.8091,178.07,178.03,2.8096]
[1729806303038,2.8091,178.07,178.04,7.77399684]
[1729806308246,2.8091,178.07,178.04,10.58359684]
[1729806310252,2.8092,178.07,178.03,2.8096]
[1729806310455,7.77399684,178.09,178.03,7.77399684]
[1729806310843,12.2366,178.13,178.03,7.77399684]
[1729806311147,7.77399684,178.1,178.03,7.77399684]
[1729806311453,2.8092,178.07,178.03,10.58369684]
[1729806312047,2.8093,178.06,178.03,10.58369684]
[1729806312449,2.8093,178.06,178.03,2.8097]
[1729806312748,2.8093,178.06,178.03,10.58369684]
[1729806313248,12.2366,178.13,178.03,7.77399684]
[1729806313447,2.809,178.08,178.05,2.8093]
[1729806313642,7.77399684,178.11,178.03,7.77399684]
[1729806314448,7.77399684,178.11,178.04,2.8095]
[1729806315146,2.8091,178.08,178.04,2.8095]
[1729806315849,2.8091,178.07,178.04,2.8095]
[1729806317652,2.8093,178.06,178.03,10.58369684]
[1729806319054,7.77399684,178.09,178.03,7.77399684]
[1729806319256,7.77399684,178.09,178.01,12.53399684]
[1729806319959,2.8095,178.05,178.02,2.8098]
[1729806325963,2.8097,178.04,178.01,15.34389684]
[1729806326857,7.77399684,178.09,178.01,12.53399684]
[1729806327057,2.8095,178.05,178.02,2.8099]
[1729806327258,7.77399684,178.09,178.01,12.53399684]
[1729806327558,12.2366,178.13,178.01,12.53399684]
[1729806327764,7.77399684,178.1,178.03,7.77399684]
[1729806328661,7.77399684,178.1,178.02,2.8098]
[1729806328962,7.77399684,178.1,178.02,10.58379684]
[1729806330363,2.8095,178.05,178.02,10.58379684]
[1729806335962,7.77399684,178.1,178.01,12.53399684]
[1729806336366,2.8097,178.03,178.01,12.53399684]
[1729806337266,2.8097,178.03,178.01,7.77399684]
[1729806338669,2.8098,178.03,178.01,7.77399684]
[1729806345970,2.8093,178.06,178.01,7.77399684]
[1729806346666,2.8093,178.06,178.03,2.8097]
[1729806349470,12.53399684,178.1,178.0,4.76]
[1729806349471,4.76,178.1,178.0,4.76]
[1729806349668,7.77399684,178.09,178.01,10.58399684]
[1729806350376,2.8097,178.04,178.01,10.58399684]
[1729806356471,2.8097,178.04,178.01,2.81]
[1729806362979,2.8095,178.05,178.02,2.8098]
[1729806363179,7.77399684,178.09,178.02,2.8098]
[1729806364082,2.8091,178.07,178.0,4.74]
[1729806364289,4.74,178.11,178.03,2.8096]
[1729806364780,2.8093,178.06,178.03,2.8096]
[1729806371985,2.8097,178.04,178.01,2.81]
[1729806372191,2.4311,178.05,177.99,7.77399684]
[1729806372886,2.8096,178.04,178.01,2.81]
[1729806381896,2.8096,178.04,178.01,10.58399684]
[1729806383696,2.8096,178.04,178.01,2.81]
[1729806385299,2.4311,178.05,177.97,4.72]
[1729806385505,2.4311,178.05,177.99,7.77399684]
[1729806386297,2.8098,178.03,178.0,2.8102]
[1729806387497,5.2406,178.05,178.0,2.8102]
[1729806390996,5.2406,178.05,178.01,2.81]
[1729806391195,2.8095,178.05,178.01,2.81]
[1729806391395,2.8095,178.05,178.01,10.58399684]
[1729806392598,12.63599684,178.06,177.99,7.77399684]
[1729806394105,12.63599684,178.06,177.99,12.49399684]
[1729806394305,2.8095,178.05,178.01,2.81]
[1729806398200,2.8096,178.04,178.01,2.81]
[1729806398508,12.63599684,178.06,178.01,2.81]
[1729806399009,2.8095,178.05,177.99,4.72]
[1729806399206,12.63599684,178.06,178.01,2.81]
[1729806400404,2.8095,178.05,178.01,2.81]
[1729806402101,4.862,178.06,177.99,12.49399684]
[1729806402102,7.6713,178.06,178.02,2.8098]
[1729806402405,7.6713,178.06,177.99,12.49399684]
[1729806402406,4.862,178.06,177.99,7.77399684]
[1729806402607,12.63599684,178.06,177.99,7.77399684]
[1729806402808,2.8094,178.05,178.01,2.8099]
[1729806402996,4.862,178.06,177.99,7.77399684]
[1729806403308,7.77399684,178.07,177.99,7.77399684]
[1729806403502,2.8095,178.05,178.01,2.81]
[1729806405509,7.77399684,178.07,178.01,2.81]
[1729806405709,2.8096,178.04,178.01,2.81]
[1729806413409,4.72,178.09,177.99,12.49399684]
[1729806413713,2.8095,178.05,178.02,2.8099]
[1729806414015,7.77399684,178.08,178.01,7.77399684]
[1729806414214,2.8096,178.04,178.01,10.58399684]
[1729806415309,2.8096,178.04,178.01,2.81]
[1729806422711,2.8098,178.03,178.0,2.8102]
[1729806428527,2.8097,178.04,178.01,2.81]
[1729806428728,7.77399684,178.05,177.99,12.49399684]
[1729806430319,2.8098,178.03,178.0,2.8102]
[1729806434124,7.77399684,178.05,177.99,7.77399684]
[1729806434322,7.77399684,178.05,177.99,2.8103]
[1729806434524,7.77399684,178.04,177.98,7.77399684]
[1729806434823,2.8102,178.01,177.98,7.77399684]
[1729806435223,2.8102,178.01,177.97,2.8106]
[1729806435423,2.8103,178.0,177.96,10.58469684]
[1729806435920,2.8105,177.98,177.96,7.77399684]
[1729806436831,2.8105,177.98,177.95,2.8109]
[1729806437131,2.8107,177.97,177.94,10.58509684]
[1729806438537,2.8106,177.98,177.95,2.811]
[1729806439139,12.53519684,178.0,177.94,7.77399684]
[1729806439329,2.8108,177.97,177.94,7.77399684]
[1729806440732,12.53519684,178.0,177.94,7.77399684]
[1729806442638,2.8108,177.97,177.94,7.77399684]
[1729806444238,2.8108,177.97,177.93,2.8112]
[1729806444439,2.8108,177.97,177.93,10.58519684]
[1729806445641,2.8108,177.96,177.93,10.58519684]
[1729806446334,2.8111,177.95,177.91,2.8115]
[1729806446541,2.8111,177.95,177.92,7.77399684]
[1729806447538,2.8111,177.95,177.92,10.58549684]
[1729806447735,12.47399684,177.99,177.85,4.7]
[1729806447736,7.77399684,177.96,177.85,4.7]
[1729806447933,2.5608,177.95,177.88,2.812]
[1729806448133,2.5608,177.95,177.88,7.77399684]
[1729806448644,2.8114,177.93,177.89,2.8119]
[1729806449238,2.8115,177.92,177.89,2.8119]
[1729806449736,2.8115,177.92,177.88,10.58599684]
[1729806450437,2.8115,177.92,177.88,2.812]
[1729806450639,2.8115,177.92,177.88,10.58599684]
[1729806450836,2.8114,177.93,177.88,10.58599684]
[1729806451043,17.50419684,177.94,177.87,2.8122]
[1729806451341,17.50419684,177.94,177.88,7.77399684]
[1729806451937,17.50419684,177.94,177.88,10.58599684]
[1729806452342,2.8116,177.92,177.88,10.58599684]
[1729806452736,17.50419684,177.94,177.88,10.58599684]
[1729806453046,2.8117,177.91,177.88,10.58599684]
[1729806454340,17.50419684,177.94,177.77,1.0077]
[1729806454541,7.77399684,177.92,177.86,10.58629684]
[1729806456046,2.812,177.89,177.86,2.8123]
[1729806456353,2.812,177.89,177.86,10.58629684]
[1729806458844,2.8119,177.9,177.87,2.8122]
[1729806459650,7.77399684,177.92,177.86,7.77399684]
[1729806459846,2.812,177.89,177.86,10.58639684]
[1729806461551,2.812,177.89,177.86,2.8124]
[1729806470159,10.33479684,177.95,177.88,7.77399684]
[1729806471255,2.8114,177.93,177.9,2.8118]
[1729806471762,2.8117,177.91,177.88,2.812]
[1729806472261,7.77399684,177.93,177.85,7.77399684]
[1729806473260,2.8119,177.9,177.87,2.8122]
[1729806475660,2.8113,177.94,177.87,7.77399684]
[1729806477264,2.8113,177.94,177.9,2.8117]
[1729806483566,7.77399684,177.95,177.9,2.8117]
[1729806483766,2.8113,177.93,177.9,2.8117]
[1729806498292,2.8116,177.91,177.88,2.812]
[1729806498890,2.8121,177.88,177.83,7.77399684]
[1729806499197,2.8121,177.88,177.79,2.4538]
[1729806499391,2.8121,177.88,177.83,7.77399684]
[1729806500384,2.8121,177.88,177.85,2.8125]
[1729806512011,7.77399684,177.87,177.81,7.77399684]
[1729806512317,7.77399684,177.88,177.81,7.77399684]
[1729806513309,2.8123,177.87,177.84,2.8127]
[1729806514203,2.8123,177.87,177.81,7.77399684]
[1729806514204,2.8124,177.86,177.83,2.8129]
[1729806514403,7.77399684,177.88,177.82,7.77399684]
[1729806515511,2.8124,177.87,177.84,2.8127]
[1729806520413,7.77399684,177.87,177.81,7.77399684]
[1729806521007,10.58629684,177.87,177.84,2.8127]
[1729806525419,4.7615,177.9,177.81,7.77399684]
[1729806525614,2.3962,177.92,177.83,7.77399684]
[1729806525821,2.3962,177.92,177.85,7.77399684]
[1729806526016,7.77399684,177.91,177.85,7.77399684]
[1729806526821,2.3962,177.92,177.85,7.77399684]
[1729806527024,7.77399684,177.91,177.85,7.77399684]
[1729806527525,7.77399684,177.91,177.87,2.8121]
[1729806528019,7.77399684,177.89,177.84,4.68]
[1729806528220,10.58599684,177.89,177.86,2.8123]
[1729806528431,7.77399684,177.89,177.86,2.8123]
[1729806530333,2.8118,177.9,177.86,2.8123]
[1729806531128,7.77399684,177.91,177.86,2.8123]
[1729806531315,2.812,177.89,177.86,2.8123]
[1729806532726,2.812,177.89,177.84,4.68]
[1729806533424,4.68,177.94,177.84,4.68]
[1729806533629,2.8119,177.9,177.84,4.68]
[1729806534031,2.8119,177.9,177.85,2.8124]
[1729806534237,2.8119,177.9,177.84,4.68]
[1729806534732,9.504,177.96,177.85,7.77399684]
[1729806534928,7.77399684,177.92,177.85,7.77399684]
[1729806535129,9.504,177.96,177.85,7.77399684]
[1729806535429,2.8118,177.9,177.87,2.8122]
[1729806535632,9.504,177.96,177.85,7.77399684]
[1729806535633,7.77399684,177.92,177.85,7.77399684]
[1729806536237,9.504,177.96,177.85,7.77399684]
[1729806536730,7.77399684,177.92,177.85,7.77399684]
[1729806536932,2.8114,177.93,177.87,2.8122]
[1729806537128,9.504,177.96,177.85,7.77399684]
[1729806537129,7.77399684,177.92,177.85,7.77399684]
[1729806537335,7.77399684,177.92,177.84,4.68]
[1729806537527,7.77399684,177.92,177.84,12.45399684]
[1729806538329,2.812,177.89,177.86,2.8124]
[1729806543533,7.77399684,177.92,177.84,12.45399684]
[1729806543741,2.8118,177.9,177.87,2.8122]
[1729806543940,7.77399684,177.92,177.85,7.77399684]
[1729806544542,4.844,177.96,177.87,7.77399684]
[1729806544742,2.34,177.96,177.89,7.77399684]
[1729806544948,2.34,177.96,177.89,12.43399684]
[1729806546044,2.811,177.95,177.92,2.8114]
[1729806546552,2.811,177.95,177.89,12.43399684]
[1729806547137,2.811,177.95,177.91,2.8116]
[1729806547538,2.34,177.96,177.91,2.8116]
[1729806547745,2.34,177.96,177.92,2.8114]
[1729806547945,10.11399684,177.96,177.92,2.8114]
[1729806548347,2.8111,177.95,177.92,2.8114]
[1729806553761,10.11399684,177.96,177.89,12.43399684]
[1729806554057,2.811,177.95,177.92,2.8114]
[1729806554356,7.77399684,177.97,177.89,12.43399684]
[1729806554554,7.77399684,177.97,177.91,7.77399684]
[1729806555152,7.77399684,177.97,177.95,2.811]
[1729806555356,7.77399684,177.97,177.91,7.77399684]
[1729806555958,10.58439684,177.99,177.96,2.8108]
[1729806558259,2.8105,177.98,177.95,2.8109]
[1729806561457,10.58449684,177.98,177.95,2.8109]
[1729806565670,7.77399684,177.98,177.89,4.66]
[1729806565868,7.77399684,177.96,177.89,4.66]
[1729806566274,2.3538,178.0,177.91,7.77399684]
[1729806566472,7.77399684,177.98,177.91,7.77399684]
[1729806567272,2.8107,177.97,177.94,2.811]
[1729806567467,7.77399684,177.96,177.89,4.64]
[1729806567668,2.8113,177.93,177.9,2.8117]
[1729806568572,2.8112,177.94,177.9,2.8117]
[1729806573272,2.8112,177.94,177.91,2.8116]
[1729806576272,7.77399684,177.96,177.9,2.8117]
[1729806576471,2.4526,177.95,177.9,2.8117]
[1729806576678,2.8114,177.93,177.9,2.8117]
[1729806580779,2.4526,177.95,177.89,7.77399684]
[1729806580980,2.8112,177.94,177.91,2.8115]
[1729806587686,2.8114,177.93,177.9,2.8118]
[1729806600793,10.24559684,177.94,177.87,7.77399684]
[1729806601392,2.8114,177.93,177.9,2.8117]
[1729806614702,10.24559684,177.94,177.86,4.64]
[1729806614902,2.8115,177.92,177.87,7.77399684]
[1729806615205,10.24559684,177.94,177.87,7.77399684]
[1729806616002,2.8113,177.93,177.9,2.8117]
[1729806618697,13.05689684,177.94,177.89,2.8119]
[1729806618901,13.05689684,177.94,177.87,7.77399684]
[1729806619708,2.8113,177.93,177.9,2.8117]
[1729806634506,2.8114,177.93,177.9,2.8117]
[1729806635709,2.4716,177.94,177.86,12.41399684]
[1729806636207,10.24559684,177.94,177.86,12.41399684]
[1729806636408,10.24559684,177.94,177.86,12.39399684]
[1729806637316,2.8113,177.93,177.9,2.8117]
[1729806667036,4.62,177.98,177.92,2.8113]
[1729806667242,7.3632,178.04,177.92,2.8113]
[1729806667243,7.77399684,177.96,177.92,2.8113]
[1729806667543,7.77399684,177.96,177.89,7.77399684]
[1729806668843,2.811,177.95,177.92,2.8113]
[1729806672946,10.58489684,177.96,177.92,2.8113]
[1729806674548,10.58489684,177.96,177.93,2.8113]
[1729806674852,2.8109,177.96,177.93,2.8113]
[1729806675045,10.58489684,177.96,177.93,2.8113]
[1729806683446,2.811,177.95,177.92,2.8114]
[1729806684353,7.77399684,177.96,177.92,2.8114]
[1729806684555,10.58489684,177.96,177.93,2.8113]
[1729806685756,10.58489684,177.96,177.87,4.8305]
[1729806685757,7.77399684,177.96,177.87,4.8305]
[1729806686347,2.811,177.95,177.92,2.8114]
[1729806686854,2.8109,177.96,177.92,2.8114]
[1729806687166,2.8109,177.96,177.93,2.8113]
[1729806691154,10.58479684,177.97,177.93,2.8113]
[1729806697262,10.58479684,177.97,177.94,2.8111]
[1729806697662,7.77399684,177.97,177.9,7.77399684]
[1729806699062,7.77399684,177.97,177.94,2.8111]
[1729806700053,10.58469684,177.97,177.94,2.8111]
[1729806705469,2.8107,177.97,177.94,2.8111]
[1729806708770,2.8106,177.98,177.95,2.811]
[1729806710963,2.8106,177.98,177.94,2.8111]
[1729806713469,10.58459684,177.98,177.94,2.8111]
[1729806716362,10.58459684,177.98,177.9,12.37399684]
[1729806716570,10.58459684,177.98,177.9,4.6]
[1729806716771,10.58459684,177.98,177.9,12.37399684]
[1729806717677,10.58459684,177.98,177.94,2.8111]
[1729806719577,10.58459684,177.98,177.95,2.811]
[1729806722077,2.8106,177.98,177.95,2.811]
[1729806722279,10.58459684,177.98,177.95,2.811]
[1729806722481,10.58459684,177.98,177.94,2.8111]
[1729806723979,7.77399684,177.97,177.9,4.58]
[1729806724181,7.77399684,177.97,177.92,2.8114]
[1729806724182,2.8109,177.96,177.92,2.8114]
[1729806724991,2.8109,177.96,177.93,2.8113]
[1729806726887,2.8109,177.96,177.9,4.58]
[1729806726888,2.8113,177.93,177.9,2.8116]
[1729806727087,7.77399684,177.94,177.9,2.8116]
[1729806727689,10.58519684,177.94,177.91,2.8116]
[1729806730413,7.77399684,177.94,177.91,2.8116]
[1729806730899,4.9592,177.95,177.87,12.35399684]
[1729806731094,7.77399684,177.94,177.87,12.35399684]
[1729806731495,4.9592,177.95,177.87,12.35399684]
[1729806731697,4.9592,177.95,177.88,7.77399684]
[1729806732492,12.73319684,177.95,177.88,7.77399684]
[1729806732995,2.8113,177.94,177.9,2.8118]
[1729806733208,7.77399684,177.94,177.9,2.8118]
[1729806733398,2.8115,177.92,177.88,2.8121]
[1729806733598,7.77399684,177.94,177.88,2.8121]
[1729806733901,2.8117,177.91,177.87,2.8122]
[1729806735395,2.8117,177.91,177.88,7.77399684]
[1729806735796,2.8115,177.92,177.89,2.8119]
[1729806740007,2.8117,177.91,177.85,4.58]
[1729806740204,7.77399684,177.94,177.86,7.77399684]
[1729806741408,7.77399684,177.94,177.88,2.8121]
[1729806741409,2.8115,177.92,177.88,2.8121]
[1729806745003,4.9592,177.95,177.86,7.77399684]
[1729806745200,2.8114,177.93,177.89,2.8118]
[1729806745602,2.8112,177.94,177.9,2.8116]
[1729806745806,2.8112,177.94,177.88,7.77399684]
[1729806747204,2.8112,177.94,177.9,2.8117]
[1729806747914,2.8114,177.93,177.89,2.8119]
[1729806751305,2.8115,177.92,177.89,2.8119]
[1729806751709,2.8115,177.92,177.88,2.8121]
[1729806755809,2.8113,177.93,177.9,2.8118]
[1729806756108,9.5392,177.95,177.87,7.77399684]
[1729806756310,7.77399684,177.94,177.87,7.77399684]
[1729806756509,2.8116,177.92,177.88,2.812]
[1729806761019,7.77399684,177.94,177.88,2.812]
[1729806761916,2.8116,177.91,177.88,2.812]
[1729806766020,9.5392,177.95,177.88,2.812]
[1729806766315,2.8116,177.92,177.88,2.812]
[1729806766714,2.8117,177.91,177.88,2.812]
[1729806767715,7.77399684,177.94,177.85,4.58]
[1729806767917,2.8117,177.91,177.88,2.8121]
[1729806770615,2.8117,177.91,177.86,7.77399684]
[1729806770616,2.8118,177.9,177.87,2.8122]
[1729806780233,2.8118,177.9,177.86,7.77399684]
[1729806780531,2.8118,177.9,177.86,10.58639684]
[1729806784137,7.77399684,177.92,177.86,7.77399684]
[1729806784330,2.8121,177.89,177.86,7.77399684]
[1729806785034,2.8121,177.89,177.86,10.58639684]
[1729806791843,2.812,177.89,177.86,10.58639684]
[1729806798835,2.812,177.89,177.83,4.56]
[1729806798836,2.812,177.89,177.85,2.8125]
[1729806799037,2.812,177.89,177.85,10.58649684]
[1729806804349,7.77399684,177.92,177.85,7.77399684]
[1729806804650,2.8122,177.88,177.85,10.58659684]
[1729806815450,2.8117,177.91,177.87,2.8122]
[1729806816960,2.8117,177.91,177.88,2.812]
[1729806817359,5.3628,177.95,177.9,2.8117]
[1729806817658,5.3628,177.95,177.89,7.77399684]